[Event "FIDE Grand Swiss 2023"]
[Site "Villa Marina, Douglas, Isle of Man"]
[Date "2023.10.30"]
[Round "6.24"]
[White "Aronian, Levon"]
[Black "Kollars, Dmitrij"]
[Result "1-0"]
[WhiteElo "2742"]
[BlackElo "2633"]
[EventDate "2023.10.25"]
[ECO "C50"]
[PlyCount "109"]
[BlackFideId "12909572"]
[TimeControl "40/100 + 20/50 + 15 + 30s/move"]
[WhiteFideId "13300474"]

1.e4 {[%clk 01:40:56] [%emt 00:00:04]} 1...e5 {[%clk 01:40:52] [%emt 00:00:08]} 
2.Nf3 {[%clk 01:41:21] [%emt 00:00:05]} 2...Nc6 {[%clk 01:41:16] [%emt
00:00:06]} 3.Bc4 {[%clk 01:41:47] [%emt 00:00:04]} 3...Bc5 {[%clk 01:41:27]
[%emt 00:00:20]} 4.O-O {[%clk 01:42:09] [%emt 00:00:07]} 4...Nf6 {[%clk
01:41:39] [%emt 00:00:17]} 5.d3 {[%clk 01:42:33] [%emt 00:00:07]} 5...d6 {[%clk
01:41:47] [%emt 00:00:22]} 6.c3 {[%clk 01:42:58] [%emt 00:00:05]} 6...a5 {[%clk
01:41:42] [%emt 00:00:36]} 7.Re1 {[%clk 01:43:20] [%emt 00:00:08]} 7...O-O 
{[%clk 01:41:48] [%emt 00:00:23]} 8.h3 {[%clk 01:43:46] [%emt 00:00:05]} 
8...Be6 {[%clk 01:41:15] [%emt 00:01:02]} 9.Bb5 {[%clk 01:44:04] [%emt
00:00:12]} 9...Ba7 {[%clk 01:41:28] [%emt 00:00:17]} 10.Be3 {[%clk 01:43:20]
[%emt 00:01:14]} 10...Bxe3 {[%clk 01:37:35] [%emt 00:04:23]} 11.Rxe3 {[%clk
01:43:43] [%emt 00:00:06]} 11...Bd7 {[%clk 01:37:33] [%emt 00:00:32]} 12.a4 
{[%clk 01:39:52] [%emt 00:04:22]} 12...Re8 {[%clk 01:37:34] [%emt 00:00:28]} 
13.Nbd2 {[%clk 01:38:54] [%emt 00:01:28]} 13...Ne7 {[%clk 01:33:22] [%emt
00:04:42]} 14.d4 {[%clk 01:31:25] [%emt 00:08:00]} 14...Ng6 {[%clk 01:32:16]
[%emt 00:01:35]} 15.Bf1 {[%clk 01:24:47] [%emt 00:07:09]} 15...h6 {[%clk
01:22:34] [%emt 00:10:12]} 16.g3 {[%clk 01:22:03] [%emt 00:03:14]} 16...Nh7 
{[%clk 00:47:07] [%emt 00:35:57]} 17.Nc4 {[%clk 01:16:13] [%emt 00:06:19]} 
17...Qc8 {[%clk 00:45:21] [%emt 00:02:16]} 18.Kh2 {[%clk 01:14:10] [%emt
00:02:34]} 18...Bc6 {[%clk 00:44:25] [%emt 00:01:25]} 19.d5 {[%clk 00:59:25]
[%emt 00:15:15]} 19...Bd7 {[%clk 00:44:45] [%emt 00:00:10]} 20.b4 {[%clk
00:59:53] [%emt 00:00:02]} 20...b6 {[%clk 00:42:56] [%emt 00:02:19]} 21.bxa5 
{[%clk 01:00:10] [%emt 00:00:14]} 21...bxa5 {[%clk 00:43:21] [%emt 00:00:04]} 
22.Ncd2 {[%clk 01:00:24] [%emt 00:00:16]} 22...Rf8 {[%clk 00:41:26] [%emt
00:02:25]} 23.Ra2 {[%clk 00:57:52] [%emt 00:03:02]} 23...Ne7 {[%clk 00:37:49]
[%emt 00:04:06]} 24.Re1 {[%clk 00:55:41] [%emt 00:02:42]} 24...Qb7 {[%clk
00:36:54] [%emt 00:01:25]} 25.Bd3 {[%clk 00:36:28] [%emt 00:19:43]} 25...Qa7 
{[%clk 00:34:33] [%emt 00:02:51]} 26.Qe2 {[%clk 00:34:10] [%emt 00:02:47]} 
26...f5 {[%clk 00:30:37] [%emt 00:04:26]} 27.Bb5 {[%clk 00:32:49] [%emt
00:01:52]} 27...Nf6 {[%clk 00:27:39] [%emt 00:03:28]} 28.c4 {[%clk 00:31:26]
[%emt 00:01:53]} 28...Rf7 {[%clk 00:22:47] [%emt 00:05:22]} 29.exf5 {[%clk
00:21:56] [%emt 00:10:00]} 29...Nxf5 {[%clk 00:22:51] [%emt 00:00:26]} 30.g4 
{[%clk 00:17:52] [%emt 00:04:34]} 30...Nd4 {[%clk 00:13:57] [%emt 00:09:24]} 
31.Nxd4 {[%clk 00:17:50] [%emt 00:00:31]} 31...exd4 {[%clk 00:14:12] [%emt
00:00:16]} 32.Kg2 {[%clk 00:06:00] [%emt 00:12:20]} 32...Bxb5 {[%clk 00:09:41]
[%emt 00:05:01]} 33.axb5 {[%clk 00:06:26] [%emt 00:00:05]} 33...Nd7 {[%emt
00:01:58]} 34.f4 {[%clk 00:05:08]} 34...d3 {[%clk 00:09:11] [%emt 00:01:20]} 
35.Qe4 {[%clk 00:02:40] [%emt 00:02:57]} 35...Raf8 {[%clk 00:08:02] [%emt
00:01:39]} 36.f5 {[%clk 00:01:55] [%emt 00:01:15]} 36...g6 {[%clk 00:08:03]
[%emt 00:00:29]} 37.Nf3 {[%clk 00:01:03] [%emt 00:01:22]} 37...gxf5 {[%clk
00:07:25] [%emt 00:01:08]} 38.Qe6 {[%clk 00:01:09] [%emt 00:00:24]} 38...fxg4 
{[%clk 00:04:10] [%emt 00:03:45]} 39.hxg4 {[%clk 00:01:38] [%emt 00:00:01]} 
39...Ne5 {[%clk 00:01:48] [%emt 00:02:52]} 40.Nxe5 {[%clk 00:00:34] [%emt
00:01:34]} 40...dxe5 {[%clk 00:02:12] [%emt 00:00:06]} 41.g5 {[%clk 00:42:27]
[%emt 00:08:36]} 41...Qb6 {[%clk 00:47:01] [%emt 00:05:42]} 42.Rxe5 {[%clk
00:42:01] [%emt 00:00:56]} 42...Qxe6 {[%clk 00:46:51] [%emt 00:00:40]} 43.dxe6 
{[%clk 00:41:57] [%emt 00:00:33]} 43...Rg7 {[%clk 00:39:18] [%emt 00:08:04]} 
44.Rd2 {[%clk 00:39:48] [%emt 00:02:39]} 44...Rd8 {[%clk 00:27:04] [%emt
00:12:44]} 45.e7 {[%clk 00:31:17] [%emt 00:09:01]} 45...Re8 {[%clk 00:27:30]
[%emt 00:00:04]} 46.Rxd3 {[%clk 00:31:40] [%emt 00:00:07]} 46...Rexe7 {[%clk
00:26:59] [%emt 00:01:01]} 47.Rxe7 {[%clk 00:31:49] [%emt 00:00:21]} 47...Rxe7 
{[%clk 00:27:26] [%emt 00:00:03]} 48.gxh6 {[%clk 00:32:14] [%emt 00:00:05]} 
48...Kh7 {[%clk 00:27:24] [%emt 00:00:32]} 49.Kf3 {[%clk 00:26:50] [%emt
00:05:54]} 49...Kxh6 {[%clk 00:27:37] [%emt 00:00:17]} 50.Re3 {[%clk 00:27:05]
[%emt 00:00:15]} 50...Rd7 {[%clk 00:26:14] [%emt 00:01:51]} 51.Ke4 {[%clk
00:26:07] [%emt 00:01:30]} 51...Kg6 {[%clk 00:24:04] [%emt 00:02:40]} 52.Rf3 
{[%clk 00:25:37] [%emt 00:00:59]} 52...Rf7 {[%clk 00:20:41] [%emt 00:03:53]} 
53.Rg3+ {[%clk 00:24:45] [%emt 00:01:22]} 53...Kf6 {[%clk 00:19:58] [%emt
00:01:13]} 54.Kd5 {[%clk 00:25:00] [%emt 00:00:15]} 54...a4 {[%clk 00:19:03]
[%emt 00:01:25]} 55.c5 {[%clk 00:23:58] [%emt 00:01:33]} 1-0

[Event "FIDE Grand Swiss 2023"]
[Site "Villa Marina, Douglas, Isle of Man"]
[Date "2023.10.30"]
[Round "6.25"]
[White "Sargsyan, Shant"]
[Black "Praggnanandhaa, R"]
[Result "1/2-1/2"]
[WhiteElo "2631"]
[BlackElo "2738"]
[EventDate "2023.10.25"]
[ECO "E04"]
[PlyCount "73"]
[BlackFideId "25059530"]
[TimeControl "40/100 + 20/50 + 15 + 30s/move"]
[WhiteFideId "13306766"]

1.d4 {[%clk 01:39:41] [%emt 00:01:18]} 1...Nf6 {[%clk 01:39:54] [%emt 00:01:06]} 
2.c4 {[%clk 01:39:58] [%emt 00:00:14]} 2...e6 {[%clk 01:40:19] [%emt 00:00:04]} 
3.Nf3 {[%clk 01:40:17] [%emt 00:00:12]} 3...d5 {[%clk 01:40:43] [%emt 00:00:05]} 
4.g3 {[%clk 01:40:41] [%emt 00:00:07]} 4...dxc4 {[%clk 01:40:29] [%emt
00:00:44]} 5.Bg2 {[%clk 01:41:01] [%emt 00:00:09]} 5...a6 {[%clk 01:40:51] [%emt
00:00:09]} 6.O-O {[%clk 01:40:42] [%emt 00:00:48]} 6...b5 {[%clk 01:41:09] [%emt
00:00:12]} 7.a4 {[%clk 01:34:31] [%emt 00:06:41]} 7...Bb7 {[%clk 01:33:18] [%emt
00:08:22]} 8.axb5 {[%clk 01:32:06] [%emt 00:02:55]} 8...axb5 {[%clk 01:32:37]
[%emt 00:01:11]} 9.Rxa8 {[%clk 01:32:16] [%emt 00:00:20]} 9...Bxa8 {[%clk
01:33:05] [%emt 00:00:02]} 10.Bg5 {[%clk 01:31:30] [%emt 00:01:16]} 10...Be7 
{[%clk 01:19:33] [%emt 00:14:02]} 11.Nc3 {[%clk 01:27:16] [%emt 00:04:43]} 
11...Bxf3 {[%clk 01:07:33] [%emt 00:12:30]} 12.Bxf3 {[%clk 01:27:00] [%emt
00:00:47]} 12...c6 {[%clk 01:07:30] [%emt 00:00:31]} 13.Bxf6 {[%clk 01:01:20]
[%emt 00:26:12]} 13...Bxf6 {[%clk 01:06:57] [%emt 00:01:03]} 14.e3 {[%clk
01:01:40] [%emt 00:00:09]} 14...O-O {[%clk 01:05:00] [%emt 00:02:26]} 15.Qa1 
{[%clk 00:57:12] [%emt 00:04:59]} 15...e5 {[%clk 00:40:16] [%emt 00:25:14]} 
16.d5 {[%clk 00:52:36] [%emt 00:05:05]} 16...b4 {[%clk 00:39:39] [%emt
00:01:06]} 17.Ne4 {[%clk 00:51:14] [%emt 00:01:53]} 17...cxd5 {[%clk 00:39:46]
[%emt 00:00:22]} 18.Rd1 {[%clk 00:48:46] [%emt 00:02:59]} 18...d4 {[%clk
00:33:07] [%emt 00:07:09]} 19.Qc1 {[%clk 00:47:41] [%emt 00:01:35]} 19...c3 
{[%clk 00:32:51] [%emt 00:00:46]} 20.bxc3 {[%clk 00:46:40] [%emt 00:01:31]} 
20...bxc3 {[%clk 00:32:41] [%emt 00:00:39]} 21.Nxc3 {[%clk 00:46:16] [%emt
00:00:54]} 21...g6 {[%clk 00:26:42] [%emt 00:06:29]} 22.Nd5 {[%clk 00:32:58]
[%emt 00:13:49]} 22...Bg7 {[%clk 00:25:40] [%emt 00:01:31]} 23.h4 {[%clk
00:22:24] [%emt 00:11:05]} 23...h5 {[%clk 00:22:39] [%emt 00:03:30]} 24.exd4 
{[%clk 00:15:46] [%emt 00:07:08]} 24...exd4 {[%clk 00:22:34] [%emt 00:00:36]} 
25.Nb4 {[%clk 00:15:52] [%emt 00:00:24]} 25...Qd6 {[%clk 00:16:34] [%emt
00:06:30]} 26.Nd3 {[%clk 00:15:44] [%emt 00:00:38]} 26...Rd8 {[%clk 00:14:13]
[%emt 00:02:51]} 27.Kg2 {[%clk 00:15:19] [%emt 00:00:56]} 27...Nd7 {[%clk
00:14:02] [%emt 00:00:39]} 28.Qc4 {[%clk 00:13:24] [%emt 00:02:25]} 28...Ne5 
{[%clk 00:11:21] [%emt 00:03:12]} 29.Nxe5 {[%clk 00:13:44] [%emt 00:00:10]} 
29...Bxe5 {[%clk 00:11:45] [%emt 00:00:06]} 30.Ra1 {[%clk 00:11:48] [%emt
00:02:26]} 30...Kg7 {[%clk 00:07:13] [%emt 00:05:02]} 31.Ra7 {[%clk 00:11:06]
[%emt 00:01:11]} 31...Rd7 {[%clk 00:07:25] [%emt 00:00:19]} 32.Rxd7 {[%clk
00:11:07] [%emt 00:00:28]} 32...Qxd7 {[%clk 00:07:53] [%emt 00:00:02]} 33.Qd3 
{[%clk 00:10:59] [%emt 00:00:38]} 33...Bc7 {[%clk 00:07:00] [%emt 00:01:24]} 
34.Be2 {[%clk 00:10:31] [%emt 00:00:58]} 34...Qd6 {[%clk 00:06:08] [%emt
00:01:22]} 35.Qf3 {[%clk 00:10:33] [%emt 00:00:26]} 35...Qf6 {[%clk 00:05:31]
[%emt 00:01:09]} 36.Qxf6+ {[%clk 00:10:45] [%emt 00:00:18]} 36...Kxf6 {[%clk
00:05:56] [%emt 00:00:05]} 37.Kf3 {[%clk 00:10:58] [%emt 00:00:17]} 1/2-1/2

[Event "FIDE Grand Swiss 2023"]
[Site "Villa Marina, Douglas, Isle of Man"]
[Date "2023.10.30"]
[Round "6.26"]
[White "Aryan, Chopra"]
[Black "Harikrishna, Pentala"]
[Result "1/2-1/2"]
[WhiteElo "2634"]
[BlackElo "2716"]
[EventDate "2023.10.25"]
[ECO "C53"]
[PlyCount "104"]
[BlackFideId "5007003"]
[TimeControl "40/100 + 20/50 + 15 + 30s/move"]
[WhiteFideId "5084423"]

1.e4 {[%clk 01:40:56] [%emt 00:00:03]} 1...e5 {[%clk 01:40:53] [%emt 00:00:08]} 
2.Nf3 {[%clk 01:41:21] [%emt 00:00:05]} 2...Nc6 {[%clk 01:41:17] [%emt
00:00:06]} 3.Bc4 {[%clk 01:41:46] [%emt 00:00:04]} 3...Bc5 {[%clk 01:41:37]
[%emt 00:00:10]} 4.c3 {[%clk 01:42:09] [%emt 00:00:08]} 4...Nf6 {[%clk 01:42:00]
[%emt 00:00:06]} 5.d4 {[%clk 01:42:21] [%emt 00:00:18]} 5...exd4 {[%clk
01:42:22] [%emt 00:00:08]} 6.e5 {[%clk 01:42:47] [%emt 00:00:05]} 6...d5 {[%clk
01:41:40] [%emt 00:01:11]} 7.Bb5 {[%clk 01:43:09] [%emt 00:00:08]} 7...Ne4 
{[%clk 01:41:45] [%emt 00:00:25]} 8.cxd4 {[%clk 01:43:29] [%emt 00:00:11]} 
8...Bb6 {[%clk 01:41:21] [%emt 00:00:53]} 9.Nc3 {[%clk 01:43:48] [%emt
00:00:10]} 9...O-O {[%clk 01:41:16] [%emt 00:00:36]} 10.Be3 {[%clk 01:44:06]
[%emt 00:00:11]} 10...Bg4 {[%clk 01:38:59] [%emt 00:02:47]} 11.h3 {[%clk
01:44:00] [%emt 00:00:37]} 11...Bh5 {[%clk 01:38:57] [%emt 00:00:32]} 12.Qc2 
{[%clk 01:44:08] [%emt 00:00:22]} 12...Bg6 {[%clk 01:35:51] [%emt 00:03:36]} 
13.Qb3 {[%clk 01:44:12] [%emt 00:00:26]} 13...Ne7 {[%clk 01:35:25] [%emt
00:00:56]} 14.O-O {[%clk 01:44:13] [%emt 00:00:29]} 14...c6 {[%clk 01:35:48]
[%emt 00:00:08]} 15.Bd3 {[%clk 01:44:30] [%emt 00:00:12]} 15...Nd2 {[%clk
01:36:08] [%emt 00:00:11]} 16.Nxd2 {[%clk 01:44:35] [%emt 00:00:25]} 16...Bxd3 
{[%clk 01:36:30] [%emt 00:00:08]} 17.Rfe1 {[%clk 01:44:00] [%emt 00:01:05]} 
17...Bg6 {[%clk 01:31:11] [%emt 00:05:49]} 18.Na4 {[%clk 01:41:45] [%emt
00:02:45]} 18...Nf5 {[%clk 01:23:57] [%emt 00:07:43]} 19.Nf3 {[%clk 01:34:27]
[%emt 00:07:49]} 19...Ba5 {[%clk 01:14:15] [%emt 00:10:11]} 20.Re2 {[%clk
01:29:21] [%emt 00:05:36]} 20...Nxe3 {[%clk 01:12:09] [%emt 00:02:36]} 21.Qxe3 
{[%clk 01:22:40] [%emt 00:07:12]} 21...Re8 {[%clk 01:06:01] [%emt 00:06:38]} 
22.Nc5 {[%clk 01:20:22] [%emt 00:02:48]} 22...Qe7 {[%clk 01:05:23] [%emt
00:01:08]} 23.Rc1 {[%clk 01:16:45] [%emt 00:04:07]} 23...Rac8 {[%clk 00:58:43]
[%emt 00:07:09]} 24.g3 {[%clk 01:05:43] [%emt 00:11:33]} 24...Bb6 {[%clk
00:53:39] [%emt 00:05:35]} 25.b4 {[%clk 00:57:35] [%emt 00:08:38]} 25...a5 
{[%clk 00:41:11] [%emt 00:12:58]} 26.a3 {[%clk 00:50:01] [%emt 00:08:03]} 
26...axb4 {[%clk 00:41:04] [%emt 00:00:37]} 27.axb4 {[%clk 00:50:25] [%emt
00:00:06]} 27...Ra8 {[%clk 00:40:36] [%emt 00:00:58]} 28.Nh4 {[%clk 00:49:05]
[%emt 00:01:50]} 28...Bd8 {[%clk 00:34:28] [%emt 00:06:38]} 29.Nxg6 {[%clk
00:33:56] [%emt 00:15:39]} 29...hxg6 {[%clk 00:34:33] [%emt 00:00:25]} 30.Qb3 
{[%clk 00:34:01] [%emt 00:00:25]} 30...Bb6 {[%clk 00:28:35] [%emt 00:06:28]} 
31.Rec2 {[%clk 00:25:29] [%emt 00:09:02]} 31...Bxc5 {[%clk 00:18:57] [%emt
00:10:08]} 32.Rxc5 {[%clk 00:25:49] [%emt 00:00:11]} 32...Qd7 {[%clk 00:19:18]
[%emt 00:00:08]} 33.b5 {[%clk 00:19:19] [%emt 00:07:00]} 33...Re6 {[%clk
00:17:57] [%emt 00:01:51]} 34.Kg2 {[%clk 00:18:05] [%emt 00:01:43]} 34...g5 
{[%clk 00:16:17] [%emt 00:02:09]} 35.bxc6 {[%clk 00:17:57] [%emt 00:00:40]} 
35...bxc6 {[%clk 00:16:39] [%emt 00:00:07]} 36.Qc2 {[%clk 00:15:59] [%emt
00:02:27]} 36...Rh6 {[%clk 00:14:05] [%emt 00:03:05]} 37.g4 {[%clk 00:16:18]
[%emt 00:00:11]} 37...Ra6 {[%clk 00:08:05] [%emt 00:06:31]} 38.Rb1 {[%clk
00:15:19] [%emt 00:01:28]} 38...Ra8 {[%clk 00:07:07] [%emt 00:01:28]} 39.Qc1 
{[%clk 00:07:54] [%emt 00:07:55]} 39...Rg6 {[%clk 00:05:35] [%emt 00:02:02]} 
40.Rb6 {[%clk 00:08:16] [%emt 00:00:09]} 40...Rc8 {[%clk 00:04:46] [%emt
00:01:18]} 41.Qb1 {[%clk 00:06:21] [%emt 00:02:27]} 41...Re6 {[%clk 00:03:48]
[%emt 00:01:27]} 42.Ra5 {[%clk 00:45:26] [%emt 00:11:25]} 42...Re7 {[%clk
00:50:03] [%emt 00:04:15]} 43.Qc2 {[%clk 00:41:01] [%emt 00:04:55]} 43...Qe6 
{[%clk 00:37:38] [%emt 00:12:55]} 44.Rc5 {[%clk 00:26:16] [%emt 00:15:15]} 
44...Rec7 {[%clk 00:34:39] [%emt 00:03:28]} 45.Rb3 {[%clk 00:20:04] [%emt
00:06:43]} 45...f6 {[%clk 00:30:54] [%emt 00:04:15]} 46.Re3 {[%clk 00:17:36]
[%emt 00:02:58]} 46...Rf8 {[%clk 00:30:42] [%emt 00:00:41]} 47.Qg6 {[%clk
00:17:15] [%emt 00:00:52]} 47...Qf7 {[%clk 00:29:42] [%emt 00:01:30]} 48.Qf5 
{[%clk 00:14:36] [%emt 00:03:08]} 48...fxe5 {[%clk 00:29:02] [%emt 00:01:10]} 
49.Rxe5 {[%clk 00:15:00] [%emt 00:00:07]} 49...Qxf5 {[%clk 00:29:22] [%emt
00:00:10]} 50.gxf5 {[%clk 00:15:25] [%emt 00:00:04]} 50...Rcf7 {[%clk 00:29:31]
[%emt 00:00:22]} 51.Rxc6 {[%clk 00:15:48] [%emt 00:00:07]} 51...Rxf5 {[%clk
00:29:34] [%emt 00:00:27]} 52.Rxf5 {[%clk 00:16:13] [%emt 00:00:05]} 52...Rxf5 
{[%clk 00:29:58] [%emt 00:00:06]} 1/2-1/2

[Event "FIDE Grand Swiss 2023"]
[Site "Villa Marina, Douglas, Isle of Man"]
[Date "2023.10.30"]
[Round "6.27"]
[White "Tari, Aryan"]
[Black "Xiong, Jeffery"]
[Result "1-0"]
[WhiteElo "2619"]
[BlackElo "2693"]
[EventDate "2023.10.25"]
[ECO "C67"]
[PlyCount "71"]
[BlackFideId "2047640"]
[TimeControl "40/100 + 20/50 + 15 + 30s/move"]
[WhiteFideId "1510045"]

1.e4 {[%clk 01:40:59]} 1...e5 {[%clk 01:40:56] [%emt 00:00:03]} 2.Nf3 {[%clk
01:41:22] [%emt 00:00:07]} 2...Nc6 {[%clk 01:41:17] [%emt 00:00:10]} 3.Bb5 
{[%clk 01:41:48] [%emt 00:00:05]} 3...Nf6 {[%clk 01:41:38] [%emt 00:00:08]} 
4.O-O {[%clk 01:41:56] [%emt 00:00:22]} 4...Nxe4 {[%clk 01:42:00] [%emt
00:00:08]} 5.Re1 {[%clk 01:42:20] [%emt 00:00:06]} 5...Nd6 {[%clk 01:42:21]
[%emt 00:00:08]} 6.Bf1 {[%clk 01:42:30] [%emt 00:00:20]} 6...Be7 {[%clk
01:39:41] [%emt 00:03:10]} 7.Nc3 {[%clk 01:42:10] [%emt 00:00:51]} 7...f6 
{[%clk 01:31:17] [%emt 00:08:54]} 8.d4 {[%clk 01:40:33] [%emt 00:02:07]} 
8...Nf7 {[%clk 01:31:42] [%emt 00:00:03]} 9.Nd5 {[%clk 01:40:04] [%emt
00:01:01]} 9...d6 {[%clk 01:31:30] [%emt 00:00:42]} 10.b4 {[%clk 01:39:22] [%emt
00:01:12]} 10...O-O {[%clk 01:24:17] [%emt 00:07:43]} 11.b5 {[%clk 01:37:02]
[%emt 00:02:51]} 11...Nb8 {[%clk 01:24:42] [%emt 00:00:04]} 12.c4 {[%clk
01:24:27] [%emt 00:13:05]} 12...Re8 {[%clk 01:13:37] [%emt 00:11:34]} 13.Bd3 
{[%clk 01:18:46] [%emt 00:06:12]} 13...Nd7 {[%clk 01:00:35] [%emt 00:13:31]} 
14.Nh4 {[%clk 01:11:43] [%emt 00:07:35]} 14...Nf8 {[%clk 00:59:43] [%emt
00:01:21]} 15.Nf5 {[%clk 00:59:34] [%emt 00:12:40]} 15...Bxf5 {[%clk 00:48:50]
[%emt 00:11:22]} 16.Bxf5 {[%clk 00:59:58] [%emt 00:00:07]} 16...g6 {[%clk
00:46:47] [%emt 00:02:32]} 17.Be4 {[%clk 00:47:06] [%emt 00:13:22]} 17...Rb8 
{[%clk 00:46:02] [%emt 00:01:13]} 18.Ba3 {[%clk 00:43:38] [%emt 00:04:00]} 
18...Nd7 {[%clk 00:42:23] [%emt 00:04:09]} 19.dxe5 {[%clk 00:38:04] [%emt
00:06:05]} 19...Ndxe5 {[%clk 00:33:41] [%emt 00:09:11]} 20.f4 {[%clk 00:31:37]
[%emt 00:06:57]} 20...Nxc4 {[%clk 00:33:20] [%emt 00:00:51]} 21.Qd3 {[%clk
00:29:42] [%emt 00:02:26]} 21...Nxa3 {[%clk 00:15:31] [%emt 00:18:18]} 22.Bxg6 
{[%clk 00:30:08] [%emt 00:00:04]} 22...hxg6 {[%clk 00:14:53] [%emt 00:01:08]} 
23.Qxg6+ {[%clk 00:30:11] [%emt 00:00:27]} 23...Kf8 {[%clk 00:15:15] [%emt
00:00:08]} 24.Re3 {[%clk 00:24:20] [%emt 00:06:21]} 24...f5 {[%clk 00:15:17]
[%emt 00:00:27]} 25.Rg3 {[%clk 00:18:41] [%emt 00:06:10]} 25...Bg5 {[%clk
00:14:24] [%emt 00:01:23]} 26.fxg5 {[%clk 00:19:00] [%emt 00:00:11]} 26...Re5 
{[%clk 00:13:29] [%emt 00:01:25]} 27.Nf6 {[%clk 00:13:51] [%emt 00:05:39]} 
27...Nxb5 {[%clk 00:11:47] [%emt 00:02:12]} 28.Rh3 {[%clk 00:10:20] [%emt
00:04:01]} 28...d5 {[%clk 00:07:41] [%emt 00:04:36]} 29.Rh7 {[%clk 00:09:22]
[%emt 00:01:29]} 29...Nbd6 {[%clk 00:07:42] [%emt 00:00:29]} 30.Rg7 {[%clk
00:09:31] [%emt 00:00:21]} 30...Ke7 {[%clk 00:06:22] [%emt 00:01:49]} 31.Rg8 
{[%clk 00:09:55] [%emt 00:00:07]} 31...f4 {[%clk 00:06:36] [%emt 00:00:15]} 
32.Rxd8 {[%clk 00:09:12] [%emt 00:01:13]} 32...Rxd8 {[%clk 00:06:11] [%emt
00:00:55]} 33.h4 {[%clk 00:07:20] [%emt 00:02:23]} 33...Rh8 {[%clk 00:05:33]
[%emt 00:01:07]} 34.Qg7 {[%clk 00:07:01] [%emt 00:00:49]} 34...Nf5 {[%clk
00:02:02] [%emt 00:04:01]} 35.Nxd5+ {[%clk 00:07:04] [%emt 00:00:28]} 35...Rxd5 
{[%clk 00:02:18] [%emt 00:00:14]} 36.Qf6+ {[%clk 00:07:15] [%emt 00:00:19]} 1-0